fUSD/lending_fUSD_20241009
["ID","MTS","AMOUNT","RATE_DAILY","PERIOD"]
[340082360,1728483038094,-2059.1038,0.000409,2]
[340082361,1728483038103,-4854.3545,0.000409,2]
[340082362,1728483038113,-1186.6985,0.000409,2]
[340082363,1728483038122,-6510.15626058,0.000409,2]
[340082364,1728483038136,-28716.72763942,0.000409,2]
[340082365,1728483038145,-1000.0,0.000409,2]
[340082366,1728483038154,-6559.02395563,0.000409,15]
[340082367,1728483038164,-2500.0,0.0004094,2]
[340082368,1728483038173,-44077.41466926,0.00041,41]
[340082369,1728483038185,-1379.86572107,0.00041,41]
[340082370,1728483038212,-4542.71960967,0.00041,41]
[340082371,1728483038222,-41494.66554388,0.00041,51]
[340082372,1728483038234,-463.4202856,0.00041,51]
[340082373,1728483038252,-8041.91417052,0.00041,51]
[340082374,1728483038262,-2003.49,0.00041,120]
[340082375,1728483038271,-6088.79023493,0.0004103,8]
[340082376,1728483038281,-361.60822536,0.00041039,31]
[340082377,1728483038294,-360.82,0.00041039,2]
[340082378,1728483038303,-360.82,0.00041039,2]
[340082379,1728483038312,-360.82,0.00041039,2]
[340082380,1728483038322,-360.82,0.00041039,2]
[340082381,1728483038333,-360.82,0.00041039,2]
[340082382,1728483038342,-360.82,0.00041039,2]
[340082383,1728483038351,-360.82,0.00041039,2]
[340082384,1728483038362,-360.82,0.00041039,2]
[340082385,1728483038371,-360.82,0.00041039,2]
[340082386,1728483038381,-360.82,0.00041039,2]
[340082387,1728483038391,-100000.0,0.0004104,2]
[340082388,1728483038400,-157.0,0.00041096,2]
[340082389,1728483038409,-366.69079664,0.000411,30]
[340082390,1728483038418,-1245.0,0.000411,7]
[340082391,1728483038428,-500.0,0.000411,2]
[340082392,1728483038438,-240.54565649,0.000414,28]
[340082393,1728483038447,-6088.79023493,0.0004149,8]
[340082394,1728483038457,-10000.0,0.000415,90]
[340082395,1728483038467,-620.13519388,0.00041779,2]
[340082396,1728483038476,-279.355,0.00041779,2]
[340082397,1728483038485,-653.12440816,0.0004179,14]
[340082398,1728483038495,-24355.1609397,0.00041869,8]
[340082400,1728483038505,-171.72868589,0.00041873,10]
[340082402,1728483038514,-91331.8535239,0.0004188,8]
[340082404,1728483038523,-6193.44121232,0.0004188,8]
[340082406,1728483038533,-199.15185174,0.0004188,2]
[340082408,1728483038542,-79154.2730541,0.0004189,8]
[340082410,1728483038551,-130062.265459,0.0004189,8]
[340082412,1728483038560,-712.61043536,0.00041897,2]
[340082414,1728483038569,-500.0,0.000419,2]
[340082416,1728483038578,-245000.0,0.000419,2]
[340082417,1728483038587,-767.803,0.000419,2]
[340082419,1728483038595,-6868.0529,0.000419,2]
[340082421,1728483038605,-151.30053413,0.000419,16]
[340082423,1728483038614,-6193.44121232,0.0004196,8]
[340082425,1728483038623,-24773.7648493,0.0004198,8]
[340082427,1728483038633,-1242.82226472,0.0004199,30]
[340082429,1728483038645,-666.04037472,0.0004199,30]
[340082431,1728483038654,-1904.46162532,0.0004199,8]
[340082455,1728483039942,-500.0,0.00040367,120]
[340082456,1728483039951,-0.05676569,0.0004199,8]
[340082457,1728483039986,-285.08160133,0.0004199,8]
[340082458,1728483039997,-3094.235864,0.0004199,8]
[340082459,1728483040139,-5666.17967787,0.0004199,8]
[340082460,1728483040151,-27089.17785513,0.0004199,8]
[340082461,1728483040163,-1518.24201,0.0004199,8]
[340082462,1728483040174,-1363.68834929,0.0004199,8]
[340082463,1728483040186,-2023.404,0.0004199,8]
[340082464,1728483040233,-885.4064957,0.0004199,8]
[340082465,1728483040263,-1421.71532109,0.0004199,8]
[340082477,1728483042934,-4295.88013318,0.0004199,8]
[340082478,1728483042943,-854.37,0.0004199,30]
[340082479,1728483042953,-5361.74986682,0.00042,52]
[340082480,1728483042964,-15804.45959578,0.00042,52]
[340082481,1728483042975,-5299.99999998,0.00042,52]
[340082482,1728483042986,-23533.79053742,0.00042,52]
[340082483,1728483042995,-19888.67009788,0.00042,42]
[340082484,1728483043006,-28374.53830623,0.00042,42]
[340082485,1728483043018,-1736.79159589,0.00042,42]
[340082486,1728483043027,-300.0,0.00042,30]
[340082487,1728483043037,-300.0,0.00042,30]
[340082488,1728483043046,-300.0,0.00042,30]
[340082489,1728483043055,-300.0,0.00042,30]
[340082490,1728483043065,-300.0,0.00042,30]
[340082491,1728483043074,-300.0,0.00042,30]
[340082492,1728483043084,-300.0,0.00042,30]
[340082493,1728483043093,-300.0,0.00042,30]
[340082494,1728483043103,-6193.44121232,0.00042006,8]
[340082495,1728483043112,-7754.8611067,0.00042016,2]
[340082496,1728483043121,-18235.43888185,0.00042016,2]
[340082497,1728483043399,-30245.92620205,0.00042016,2]
[340082499,1728483043408,-5546.4877705,0.00042331,2]
[340082500,1728483043417,-6559.0239556,0.00042456,15]
[340082501,1728483043426,-500.0,0.000425,120]
[340082502,1728483043436,-500.0,0.000425,120]
[340082503,1728483043445,-500.0,0.000425,120]
[340082504,1728483043454,-500.0,0.000425,120]
[340082505,1728483043463,-500.0,0.000425,120]
[340082506,1728483043472,-500.0,0.000425,120]
[340082507,1728483043481,-500.0,0.000425,120]
[340082508,1728483043490,-500.0,0.000425,120]
[340082509,1728483043499,-500.0,0.000425,120]
[340082510,1728483043509,-500.0,0.000425,120]
[340082511,1728483043519,-500.0,0.000425,120]
[340082512,1728483043528,-500.0,0.000425,120]
[340082513,1728483043537,-500.0,0.000425,120]
[340082514,1728483043546,-500.0,0.000425,120]
[340082515,1728483043555,-500.0,0.000425,120]
[340082516,1728483043564,-500.0,0.000425,120]
[340082517,1728483043573,-905.0,0.000425,120]
[340082518,1728483043582,-200.0,0.000425,120]
[340082519,1728483043591,-200.0,0.000425,120]
[340082520,1728483043600,-200.0,0.000425,120]
[340082521,1728483043610,-200.0,0.000425,120]
[340082522,1728483043619,-254.0,0.000425,120]
[340082523,1728483043628,-198.0,0.000425,120]
[340082524,1728483043638,-500.0,0.00042512,120]
[340082525,1728483043647,-200.0,0.00042512,120]
[340082526,1728483043656,-240.54565649,0.00042597,28]
[340082527,1728483043665,-500.0,0.00042973,10]
[340082528,1728483043674,-630.0,0.00042977,7]
[340082529,1728483043683,-1857.0245224,0.00043,43]
[340082530,1728483043822,-1043.62042131,0.00043,43]
[340082531,1728483043837,-500.0,0.0004094,2]
[340082532,1728483043846,-4511.97999997,0.00043,43]
[340082533,1728483043857,-42587.37505632,0.00043,43]
[340082534,1728483043866,-50000.0,0.00043,53]
[340082535,1728483043876,-300.0,0.00043,30]
[340082536,1728483043885,-47874.1,0.00043,40]
[340082537,1728483043897,-620.13519376,0.00043073,2]
[340082538,1728483043906,-154.51,0.00043112,2]
[340082539,1728483043916,-240.54565649,0.00043794,28]
[340082540,1728483043926,-50000.0,0.00044,44]
[340082541,1728483043935,-50000.0,0.00044,54]
[340082542,1728483043945,-346.0486896,0.00044,30]
[340082543,1728483043954,-150.0,0.00044,57]
[340082544,1728483043963,-6559.0239556,0.00044011,15]
[340082545,1728483043973,-542.07419007,0.00044342,10]
[340082546,1728483043982,-620.13519376,0.00044368,2]
[340082547,1728483043991,-522.78084132,0.000444,30]
[340082548,1728483044001,-500.0,0.000444,120]
[340082549,1728483044010,-2110.0,0.00044498,2]
[340082550,1728483044020,-5075.9256798,0.000449,5]
[340082551,1728483044030,-151.62735615,0.00044987,60]
[340082552,1728483044039,-240.54565649,0.00044991,28]
[340082553,1728483044049,-2110.0,0.00044998,2]
[340082554,1728483044058,-50000.0,0.00045,45]
[340082555,1728483044067,-50000.0,0.00045,55]
[340082556,1728483044076,-300.0,0.00045,30]
[340082557,1728483044085,-22030.29759567,0.00045,120]
[340082558,1728483044094,-31171.69,0.000452,7]
[340082559,1728483044103,-2110.0,0.00045498,2]
[340082560,1728483044112,-300.0,0.000455,30]
[340082561,1728483044122,-154.51,0.00045502,2]
[340082562,1728483044131,-6559.0239556,0.00045567,15]
[340082563,1728483044141,-620.13519376,0.00045662,2]
[340082564,1728483044151,-195205.45,0.0004591,7]
[340082565,1728483044160,-185687.01,0.0004591,7]
[340082566,1728483044169,-2110.0,0.00045998,2]
[340082567,1728483044178,-50000.0,0.00046,46]
[340082568,1728483044189,-50000.0,0.00046,56]
[340082569,1728483044198,-156.99238352,0.00046,120]
[340082570,1728483044207,-300.0,0.00046,30]
[340082571,1728483044218,-5274.25891959,0.00046,120]
[340082572,1728483044227,-240.54565649,0.00046189,28]
[340082573,1728483044236,-1500.0,0.00046216,2]
[340082574,1728483044245,-150.0,0.00046217,2]
[340082575,1728483044255,-150.0,0.00046217,2]
[340082576,1728483044264,-150.0,0.00046218,2]
[340082577,1728483044273,-150.0,0.00046225,2]
[340082578,1728483044282,-150.0,0.00046229,2]
[340082579,1728483044293,-150.0,0.0004623,2]
[340082580,1728483044303,-150.0,0.00046231,2]
[340082581,1728483044311,-150.0,0.00046232,2]
[340082582,1728483044320,-150.0,0.00046232,2]
[340082583,1728483044330,-150.0,0.00046235,2]
[340082584,1728483044340,-1500.0,0.00046236,2]
[340082585,1728483044349,-150.0,0.00046237,2]
[340082586,1728483044358,-194.9515538,0.00046242,2]
[340082587,1728483044369,-150.0,0.00046243,2]
[340082588,1728483044379,-150.0,0.00046247,2]
[340082589,1728483044391,-150.0,0.00046249,2]
[340082590,1728483044401,-150.0,0.00046252,2]
[340082591,1728483044411,-1500.0,0.00046253,2]
[340082592,1728483044420,-150.87853758,0.00046261,2]
[340082593,1728483044429,-150.0,0.00046263,2]
[340082594,1728483044438,-150.0,0.00046263,2]
[340082595,1728483044447,-150.0,0.00046265,2]
[340082596,1728483044457,-1500.0,0.00046266,2]
[340082597,1728483044466,-150.0,0.00046269,2]
[340082598,1728483044475,-150.0,0.00046278,2]
[340082599,1728483044484,-150.0,0.0004628,2]
[340082600,1728483044493,-150.0,0.0004628,2]
[340082601,1728483044502,-712.61043536,0.00046283,2]
[340082602,1728483044511,-150.0,0.00046284,2]
[340082603,1728483044520,-150.0,0.00046285,2]
[340082604,1728483044529,-150.0,0.00046286,2]
[340082605,1728483044540,-150.0,0.00046287,2]
[340082606,1728483044549,-500.0,0.00046289,120]
[340082607,1728483044558,-150.0,0.00046292,2]
[340082608,1728483044567,-150.0,0.00046293,2]
[340082609,1728483044577,-150.0,0.00046295,2]
[340082610,1728483044587,-150.0,0.00046295,2]
[340082611,1728483044596,-150.0,0.00046297,2]
[340082612,1728483044605,-150.0,0.00046298,2]
[340082613,1728483044615,-150.0,0.000463,2]
[340082614,1728483044623,-150.0,0.00046301,2]
[340082615,1728483044633,-1500.0,0.00046306,2]
[340082616,1728483044644,-229.04638306,0.00046312,2]
[340082617,1728483044653,-150.0,0.00046312,2]
[340082618,1728483044663,-150.0,0.00046313,2]
[340082619,1728483044672,-150.0,0.00046313,2]
[340082620,1728483044681,-150.0,0.00046316,2]
[340082621,1728483044690,-150.0,0.00046317,2]
[340082622,1728483044699,-150.0,0.0004632,2]
[340082623,1728483044708,-150.0,0.00046322,2]
[340082624,1728483044718,-150.0,0.00046325,2]
[340082625,1728483044726,-150.0,0.00046325,2]
[340082626,1728483044735,-150.0,0.00046326,2]
[340082627,1728483044744,-150.0,0.0004633,2]
[340082628,1728483044754,-1500.0,0.00046331,2]
[340082629,1728483044763,-150.0,0.00046332,2]
[340082630,1728483044772,-150.0,0.00046335,2]
[340082631,1728483044781,-150.0,0.00046335,2]
[340082632,1728483044790,-150.0,0.00046336,2]
[340082633,1728483044799,-1500.0,0.00046336,2]
[340082634,1728483044808,-1500.0,0.00046341,2]
[340082635,1728483044818,-150.0,0.00046343,2]
[340082636,1728483044828,-1500.0,0.00046343,2]
[340082637,1728483044837,-150.0,0.00046344,2]
[340082638,1728483044846,-150.0,0.0004635,2]
[340082639,1728483044855,-150.0,0.00046353,2]
[340082640,1728483044865,-150.0,0.00046354,2]
[340082641,1728483044874,-1500.0,0.00046356,2]
[340082642,1728483044883,-150.0,0.00046358,2]
[340082643,1728483044894,-150.0,0.00046358,2]
[340082644,1728483044904,-150.0,0.00046362,2]
[340082645,1728483044913,-150.0,0.00046362,2]
[340082646,1728483044924,-150.0,0.00046362,2]
[340082647,1728483044937,-986.14789574,0.00046365,2]
[340082648,1728483044950,-150.0,0.00046365,2]
[340082649,1728483044963,-150.0,0.00046366,2]
[340082650,1728483044974,-258.90341708,0.00046368,2]
[340082651,1728483044984,-150.0,0.00046369,2]
[340082652,1728483044997,-150.0,0.00046373,2]
[340082653,1728483045010,-150.0,0.00046377,2]
[340082654,1728483045022,-150.0,0.00046379,2]
[340082655,1728483045035,-150.0,0.00046382,2]
[340082656,1728483045047,-150.0,0.00046384,2]
[340082657,1728483045059,-150.0,0.00046384,2]
[340082658,1728483045072,-150.0,0.00046389,2]
[340082659,1728483045083,-150.0,0.0004639,2]
[340082660,1728483045095,-150.0,0.00046392,2]
[340082661,1728483045107,-150.0,0.00046394,2]
[340082662,1728483045119,-150.0,0.00046394,2]
[340082663,1728483045132,-150.0,0.00046396,2]
[340082664,1728483045145,-150.0,0.00046398,2]
[340082665,1728483045159,-150.0,0.00046399,2]
[340082666,1728483045172,-150.0,0.000464,2]
[340082667,1728483045182,-150.0,0.00046401,2]
[340082668,1728483045194,-1500.0,0.00046404,2]
[340082669,1728483045205,-150.0,0.00046405,2]
[340082670,1728483045217,-150.0,0.00046407,2]
[340082671,1728483045229,-150.0,0.00046408,2]
[340082672,1728483045241,-150.0,0.00046409,2]
[340082673,1728483045253,-150.0,0.0004641,2]
[340082674,1728483045267,-150.0,0.00046416,2]
[340082675,1728483045280,-150.0,0.00046417,2]
[340082676,1728483045298,-150.0,0.00046418,2]
[340082677,1728483045309,-150.0,0.0004642,2]
[340082678,1728483045320,-150.0,0.00046427,2]
[340082679,1728483045331,-150.0,0.0004643,2]
[340082680,1728483045343,-150.0,0.00046433,2]
[340082681,1728483045355,-150.0,0.00046434,2]
[340082682,1728483045369,-150.0,0.00046438,2]
[340082683,1728483045382,-150.0,0.00046439,2]
[340082684,1728483045393,-1500.0,0.00046443,2]
[340082685,1728483045405,-150.0,0.00046447,2]
[340082686,1728483045416,-150.0,0.00046448,2]
[340082687,1728483045429,-150.0,0.00046449,2]
[340082688,1728483045441,-150.0,0.00046451,2]
[340082689,1728483045451,-150.0,0.00046451,2]
[340082690,1728483045461,-150.0,0.00046451,2]
[340082691,1728483045472,-150.0,0.00046452,2]
[340082692,1728483045483,-150.0,0.00046452,2]
[340082693,1728483045495,-150.0,0.00046454,2]
[340082694,1728483045506,-150.0,0.00046454,2]
[340082695,1728483045517,-150.0,0.00046456,2]
[340082696,1728483045529,-189.34030708,0.00046457,2]
[340082697,1728483045541,-150.0,0.00046457,2]
[340082698,1728483045553,-150.0,0.00046466,2]
[340082699,1728483045564,-150.0,0.00046468,2]
[340082700,1728483045575,-1500.0,0.00046468,2]
[340082701,1728483045587,-1500.0,0.00046471,2]
[340082702,1728483045599,-166.39047608,0.00046475,22]
[340082703,1728483045611,-151.708831,0.00046475,14]
[340082704,1728483045621,-151.0,0.00046475,14]
[340082705,1728483045632,-151.0,0.00046475,14]
[340082706,1728483045645,-151.0,0.00046475,14]
[340082707,1728483045656,-151.0,0.00046475,14]
[340082708,1728483045668,-300.0,0.00046478,2]
[340082709,1728483045678,-150.0,0.00046479,2]
[340082710,1728483045690,-150.0,0.00046481,2]
[340082711,1728483045701,-150.0,0.00046482,2]
[340082712,1728483045713,-150.0,0.00046483,2]
[340082713,1728483045724,-150.0,0.00046484,2]
[340082714,1728483045735,-150.0,0.00046484,2]
[340082715,1728483045746,-201.0,0.0004649,30]
[340082716,1728483045757,-2110.0,0.00046498,2]
[340082717,1728483045769,-349.96174008,0.000465,120]
[340082718,1728483045779,-150.0,0.000465,120]
[340082719,1728483045790,-300.0,0.000465,30]
[340082720,1728483045801,-509.79970108,0.00046542,120]
[340082721,1728483045813,-374718.56,0.00046549,7]
[340082722,1728483045824,-418.52102402,0.00046558,120]
[340082723,1728483045835,-510.36532573,0.00046575,120]
[340082724,1728483045846,-500.0,0.00046575,120]
[340082725,1728483045856,-500.0,0.00046575,120]
[340082726,1728483045868,-500.0,0.00046575,120]
[340082727,1728483045879,-500.0,0.00046575,120]
[340082728,1728483045890,-500.0,0.00046575,120]
[340082729,1728483045902,-500.0,0.00046575,120]
[340082730,1728483045914,-500.0,0.00046575,120]
[340082732,1728483045925,-618.01,0.00046575,120]
[340082733,1728483045936,-500.0,0.00046575,120]
[340082734,1728483045947,-1451.08,0.00046575,120]
[340082735,1728483045958,-500.0,0.00046575,120]
[340082736,1728483045970,-187.09856463,0.00046575,120]
[340082737,1728483045980,-500.0,0.00046575,30]
[340082738,1728483045992,-500.0,0.00046575,120]
[340082739,1728483046003,-500.0,0.00046575,120]
[340082740,1728483046014,-334.06623425,0.00046575,120]
[340082741,1728483046026,-214.26194192,0.00046575,2]
[340082742,1728483046037,-846.31,0.00046575,120]
[340082743,1728483046048,-500.0,0.00046575,120]
[340082744,1728483046059,-500.0,0.00046575,120]
[340082745,1728483046070,-500.0,0.00046575,120]
[340082746,1728483046081,-753.52,0.00046575,120]
[340082747,1728483046092,-162.00921335,0.00046575,120]
[340082748,1728483046102,-700.0,0.00046575,120]
[340082749,1728483046114,-500.0,0.00046575,120]
[340082750,1728483046125,-500.0,0.00046575,120]
[340082751,1728483046136,-530.71174482,0.00046575,120]
[340082752,1728483046148,-500.0,0.00046575,120]
[340082753,1728483046159,-1157.85,0.00046575,120]
[340082754,1728483046171,-179.42133984,0.00046575,120]
[340082755,1728483046182,-500.0,0.00046575,120]
[340082756,1728483046192,-500.0,0.00046575,120]
[340082757,1728483046201,-500.0,0.00046575,120]
[340082758,1728483046211,-500.0,0.00046575,120]
[340082759,1728483046220,-500.0,0.00046575,120]
[340082760,1728483046229,-1564.12,0.00046575,120]
[340082761,1728483046239,-886.66,0.00046575,120]
[340082762,1728483046249,-500.0,0.00046575,120]
[340082765,1728483046432,-500.0,0.00046575,120]
[340082766,1728483046450,-522.49,0.00046575,120]
[340082767,1728483046461,-500.0,0.00046575,120]
[340082768,1728483046470,-500.0,0.00046575,120]
[340082769,1728483046480,-500.0,0.00046575,120]
[340082770,1728483046489,-670.68,0.00046575,120]
[340082771,1728483046498,-555.09622669,0.00046575,120]
[340082772,1728483046507,-850.28,0.00046575,120]
[340082773,1728483046517,-500.0,0.00046575,120]
[340082774,1728483046526,-500.0,0.00046575,120]
[340082775,1728483046535,-500.0,0.00046575,120]
[340082776,1728483046545,-500.0,0.00046575,120]
[340082777,1728483046555,-500.0,0.00046575,120]
[340082778,1728483046564,-501.96067886,0.00046575,120]
[340082779,1728483046574,-500.0,0.00046575,120]
[340082780,1728483046584,-544.36989419,0.00046575,120]
[340082781,1728483046593,-500.0,0.00046575,120]
[340082782,1728483046603,-519.9196048,0.00046575,120]
[340082783,1728483046612,-947.9,0.00046575,120]
[340082784,1728483046621,-500.0,0.00046575,120]
[340082785,1728483046630,-500.0,0.00046575,120]
[340082786,1728483046641,-500.0,0.00046575,120]
[340082787,1728483046650,-500.0,0.00046575,120]
[340082788,1728483046659,-500.0,0.00046575,120]
[340082789,1728483046668,-876.86,0.00046575,120]
[340082790,1728483046677,-500.0,0.00046575,120]
[340082791,1728483046686,-500.0,0.00046575,120]
[340082792,1728483046696,-500.0,0.00046575,120]
[340082793,1728483046705,-500.0,0.00046575,120]
[340082794,1728483046714,-500.0,0.00046575,120]
[340082795,1728483046723,-1986.59,0.00046575,120]
[340082796,1728483046732,-572.12001881,0.00046575,120]
[340082797,1728483046742,-500.0,0.00046575,5]
[340082798,1728483046752,-1210.77,0.00046575,120]
[340082799,1728483046761,-500.0,0.00046575,120]
[340082800,1728483046771,-500.0,0.00046575,120]
[340082801,1728483046780,-500.0,0.00046575,120]
[340082802,1728483046789,-1165.3,0.00046575,120]
[340082803,1728483046798,-500.0,0.00046575,120]
[340082804,1728483046808,-500.0,0.00046575,120]
[340082805,1728483046818,-528.25481793,0.00046575,120]
[340082806,1728483046827,-500.0,0.00046575,120]
[340082807,1728483046841,-500.0,0.00046575,120]
[340082808,1728483046851,-500.0,0.00046575,120]
[340082809,1728483046861,-1041.23,0.00046575,120]
[340082810,1728483046871,-500.0,0.00046575,30]
[340082811,1728483046881,-500.0,0.00046575,120]
[340082812,1728483046892,-500.0,0.00046575,120]
[340082813,1728483046903,-500.0,0.00046575,120]
[340082814,1728483046913,-547.28,0.00046575,120]
[340082815,1728483046923,-305.95323846,0.00046575,120]
[340082816,1728483046932,-1134.65,0.00046575,120]
[340082817,1728483046942,-500.0,0.00046575,120]
[340082818,1728483046952,-500.0,0.00046575,120]
[340082819,1728483046961,-500.0,0.00046575,120]
[340082820,1728483046971,-500.0,0.00046575,120]
[340082821,1728483046981,-500.0,0.00046575,120]
[340082822,1728483046990,-500.0,0.00046575,120]
[340082823,1728483046999,-500.0,0.00046575,120]
[340082824,1728483047009,-500.0,0.00046575,120]
[340082825,1728483047018,-802.81,0.00046575,120]
[340082826,1728483047028,-600.91,0.00046575,120]
[340082827,1728483047037,-500.0,0.00046575,120]
[340082828,1728483047047,-500.0,0.00046575,120]
[340082829,1728483047057,-500.0,0.00046575,7]
[340082830,1728483047067,-585.55102334,0.00046575,120]
[340082831,1728483047077,-500.0,0.00046575,120]
[340082832,1728483047087,-500.0,0.00046575,120]
[340082833,1728483047096,-635.11948453,0.00046575,120]
[340082834,1728483047106,-500.0,0.00046575,120]
[340082835,1728483047115,-602.77,0.00046575,120]
[340082836,1728483047125,-500.0,0.00046575,120]
[340082837,1728483047135,-852.96,0.00046575,120]
[340082838,1728483047148,-500.0,0.00046575,120]
[340082839,1728483047158,-500.0,0.00046575,120]
[340082840,1728483047168,-500.0,0.00046575,120]
[340082841,1728483047177,-500.0,0.00046575,120]
[340082842,1728483047187,-169.37722395,0.00046575,120]
[340082843,1728483047196,-629.59,0.00046575,120]
[340082844,1728483047206,-500.0,0.00046575,120]
[340082845,1728483047216,-500.0,0.00046575,120]
[340082846,1728483047225,-500.0,0.00046575,120]
[340082847,1728483047235,-500.0,0.00046575,120]
[340082848,1728483047245,-500.0,0.00046575,120]
[340082849,1728483047255,-500.0,0.00046575,120]
[340082850,1728483047264,-500.0,0.00046575,120]
[340082851,1728483047273,-500.0,0.00046575,120]
[340082852,1728483047284,-1451.23,0.00046575,120]
[340082853,1728483047298,-500.0,0.00046575,120]
[340082854,1728483047307,-1122.46,0.00046575,14]
[340082855,1728483047317,-500.0,0.00046575,120]
[340082856,1728483047326,-500.0,0.00046575,120]
[340082857,1728483047337,-981.98,0.00046575,120]
[340082858,1728483047347,-500.0,0.00046575,120]
[340082859,1728483047356,-255.62288576,0.00046575,120]
[340082860,1728483047368,-1136.99,0.00046575,120]
[340082861,1728483047379,-192.64171905,0.00046575,120]
[340082862,1728483047388,-500.0,0.00046575,120]
[340082863,1728483047404,-500.0,0.00046575,120]
[340082864,1728483047413,-500.0,0.00046575,120]
[340082865,1728483047423,-500.0,0.00046575,120]
[340082866,1728483047432,-1055.11,0.00046575,120]
[340082867,1728483047442,-500.0,0.00046575,120]
[340082868,1728483047451,-500.0,0.00046575,120]
[340082869,1728483047461,-500.0,0.00046575,120]
[340082870,1728483047471,-500.0,0.00046575,120]
[340082871,1728483047481,-500.0,0.00046575,120]
[340082872,1728483047490,-20000.0,0.00046575,2]
[340082873,1728483047499,-500.0,0.00046575,120]
[340082874,1728483047508,-500.0,0.00046575,120]
[340082875,1728483047518,-500.0,0.00046575,120]
[340082876,1728483047528,-500.0,0.00046575,120]
[340082877,1728483047537,-456.65582364,0.00046575,120]
[340082878,1728483047547,-500.0,0.00046575,120]
[340082879,1728483047556,-500.0,0.00046575,120]
[340082880,1728483047567,-500.0,0.00046575,120]
[340082881,1728483047577,-500.0,0.00046575,120]
[340082882,1728483047586,-606.49,0.00046575,120]
[340082883,1728483047596,-500.0,0.00046575,120]
[340082884,1728483047606,-500.0,0.00046575,120]
[340082885,1728483047615,-573.66,0.00046575,120]
[340082886,1728483047625,-601.49,0.00046575,120]
[340082887,1728483047634,-538.27,0.00046575,120]
[340082888,1728483047647,-500.0,0.00046575,120]
[340082889,1728483047657,-500.0,0.00046575,120]
[340082890,1728483047667,-500.0,0.00046575,120]
[340082891,1728483047676,-500.0,0.00046575,120]
[340082892,1728483047686,-601.78,0.00046575,120]
[340082893,1728483047695,-500.0,0.00046575,120]
[340082894,1728483047705,-500.0,0.00046575,120]
[340082895,1728483047714,-500.0,0.00046575,120]
[340082896,1728483047723,-500.0,0.00046575,120]
[340082897,1728483047732,-500.0,0.00046575,120]
[340082898,1728483047741,-500.0,0.00046575,120]
[340082899,1728483047751,-719.81,0.00046575,120]
[340082900,1728483047760,-500.0,0.00046575,120]
[340082901,1728483047769,-500.0,0.00046575,120]
[340082902,1728483047778,-151.0,0.00046575,14]
[340082903,1728483047788,-831.96,0.00046575,120]
[340082904,1728483047798,-266.352234,0.00046575,14]
[340082905,1728483047807,-500.0,0.00046575,120]
[340082906,1728483047817,-717.95,0.00046575,120]
[340082907,1728483047826,-500.0,0.00046575,120]
[340082908,1728483047836,-500.0,0.00046575,120]
[340082909,1728483047845,-500.0,0.00046575,120]
[340082910,1728483047855,-572.98,0.00046575,120]
[340082911,1728483047865,-500.0,0.00046575,120]
[340082912,1728483047875,-500.0,0.00046575,120]
[340082913,1728483047885,-987.24,0.00046575,7]